bitfinex-derivatives/quotes_ETHF0:USTF0_20250102
["timestamp","ask_amount","ask_price","bid_price","bid_amount"]
[1735813562219,0.52174932,3472.7,3472.0,3.2078]
[1735813562428,0.28831,3472.5,3472.0,3.2078]
[1735813562614,0.28831,3472.5,3472.3,0.28832]
[1735813562915,0.52174932,3472.7,3472.0,3.2078]
[1735813563121,0.28833,3472.2,3472.0,3.49614]
[1735813563318,0.8713,3472.1,3472.0,3.49614]
[1735813563526,0.8713,3472.1,3472.0,3.2078]
[1735813563717,0.28835,3472.0,3471.7,0.28837]
[1735813563923,0.28836,3471.9,3471.7,0.28837]
[1735813564126,0.8713,3472.1,3471.7,0.28837]
[1735813564324,0.28755,3472.0,3471.8,0.28836]
[1735813565215,0.8713,3472.1,3471.6,44.0078]
[1735813565423,0.8713,3472.1,3471.9,0.28835]
[1735813565624,1.15964,3472.1,3471.9,0.28835]
[1735813565923,0.28835,3472.0,3471.8,0.28836]
[1735813566124,0.28835,3472.0,3471.6,44.0078]
[1735813566319,0.28835,3472.0,3471.8,0.28836]
[1735813566924,1.15964,3472.1,3471.8,0.28836]
[1735813567221,0.8713,3472.1,3471.8,0.28836]
[1735813567426,1.15964,3472.1,3471.9,0.28835]
[1735813568426,1.15964,3472.1,3471.8,0.28836]
[1735813569821,1.15964,3472.1,3471.6,44.0078]
[1735813570019,0.8713,3472.1,3471.6,44.0078]
[1735813570228,0.8713,3472.1,3471.9,0.28835]
[1735813570423,0.8713,3472.1,3471.6,44.0078]
[1735813570726,0.8713,3472.1,3472.0,0.28835]
[1735813571819,5.39807835,3472.1,3472.0,0.28835]
[1735813572028,5.39807835,3472.1,3471.6,3.65]
[1735813572029,6.20817767,3472.1,3471.8,0.28836]
[1735813572229,0.52174932,3472.0,3471.6,3.65]
[1735813572735,0.52174932,3472.0,3471.9,0.28835]
[1735813573730,0.52174932,3472.0,3471.9,0.28836]
[1735813573929,0.81009932,3472.0,3471.8,0.28836]
[1735813574230,0.52174932,3472.0,3471.9,0.28836]
[1735813578730,0.52174932,3472.0,3471.6,3.65]
[1735813578731,5.39807835,3472.1,3471.6,3.65]
[1735813578929,0.8713,3472.1,3472.0,0.28835]
[1735813579833,0.28832,3472.4,3472.2,0.28833]
[1735813580035,0.8952,3472.3,3472.2,0.28833]
[1735813584540,1.18353,3472.3,3472.1,0.28834]
[1735813584838,0.28833,3472.2,3472.1,0.28834]
[1735813585338,0.28834,3472.1,3472.0,3.2078]
[1735813585540,0.28834,3472.2,3472.0,3.49615]
[1735813586038,0.52227112,3472.2,3472.1,0.28833]
[1735813587035,6.1034401,3472.3,3472.1,2.05185613]
[1735813587036,5.6677401,3472.3,3472.1,2.05185613]
[1735813587331,5.6677401,3472.3,3472.2,0.28833]
[1735813587536,5.6677401,3472.3,3472.2,0.72463]
[1735813587931,3.39554961,3472.5,3472.4,0.28831]
[1735813588132,3.39554961,3472.5,3472.4,11.71396613]
[1735813588327,3.37449948,3472.7,3472.6,0.2883]
[1735813588537,7.94502808,3473.5,3473.2,0.28825]
[1735813588740,4.01674318,3473.3,3473.2,49.56576226]
[1735813588939,4.01674318,3473.3,3473.2,54.56576226]
[1735813589138,4.01674318,3473.3,3473.2,52.51390613]
[1735813589334,3.39931318,3473.3,3473.2,52.51390613]
[1735813589738,0.9078,3474.4,3473.2,52.22565613]
[1735813589933,0.9078,3474.4,3474.3,0.28816]
[1735813590937,0.52069732,3474.8,3474.3,2.05185613]
[1735813591135,0.4575,3475.0,3474.7,3.2078]
[1735813591338,0.4575,3475.0,3474.9,0.28811]
[1735813591734,11.35004012,3475.6,3474.9,2.05185613]
[1735813591938,11.35004012,3475.6,3475.3,0.28807]
[1735813592135,11.35004012,3475.6,3475.3,1.45407]
[1735813592638,3.2078,3476.3,3475.6,0.28804]
[1735813592837,9.30622808,3476.6,3475.8,5.25965613]
[1735813593039,9.30622808,3476.6,3476.0,0.28801]
[1735813593338,11.35808421,3476.6,3475.8,3.2078]
[1735813593545,0.28802,3476.0,3475.4,4.66186]
[1735813593840,0.28801,3476.1,3475.5,0.28805]
[1735813594048,0.288,3476.2,3475.4,4.3738]
[1735813594241,3.4958,3476.3,3475.6,0.28804]
[1735813594441,3.4958,3476.3,3475.4,4.3738]
[1735813594640,3.4958,3476.3,3475.7,0.28804]
[1735813594843,3.4958,3476.3,3475.5,0.28641982]
[1735813595041,3.4958,3476.3,3475.7,0.28804]
[1735813595443,3.4958,3476.3,3475.8,0.28803]
[1735813596847,3.41305613,3476.6,3475.8,3.2078]
[1735813597047,1.3612,3476.6,3476.2,0.288]
[1735813597248,1.3612,3476.6,3475.8,5.25965613]
[1735813597445,3.2078,3476.7,3476.6,0.28797]
[1735813597838,1.562093,3476.6,3476.2,4.3728]
[1735813598143,1.562093,3476.6,3476.5,0.28798]
[1735813598540,1.562093,3476.6,3476.5,5.28798]
[1735813598743,0.73895652,3478.0,3476.6,0.28796]
[1735813598939,0.73895652,3478.0,3477.5,3.2078]
[1735813599140,0.45109652,3478.0,3477.5,3.2078]
[1735813599350,0.45109652,3478.0,3477.6,0.28788]
[1735813599544,0.45109652,3478.0,3477.5,3.2078]
[1735813599949,0.45109652,3478.0,3477.6,0.28788]
[1735813600246,0.00269652,3478.0,3477.8,0.28786]
[1735813600442,0.00269652,3478.0,3477.9,0.28786]
[1735813601045,0.4326,3478.5,3478.2,0.28783]
[1735813601753,0.4326,3478.5,3478.2,41.08783]
[1735813602054,0.4326,3478.5,3478.2,0.28783]
[1735813602252,0.4326,3478.5,3478.3,0.28782]
[1735813602551,3.2078,3478.8,3478.3,0.28782]
[1735813602552,3.2078,3478.8,3478.4,1.165]
[1735813603046,2.43277713,3478.7,3476.9,4.3728]
[1735813603351,8.2078,3478.8,3476.9,3.2078]
[1735813603352,3.2078,3477.6,3476.9,3.2078]
[1735813603548,0.28793,3477.0,3476.9,3.2078]
[1735813603850,0.28801,3476.1,3476.0,4.45368116]
[1735813604648,2.49131,3476.1,3476.0,3.75818116]
[1735813604842,2.4334,3476.1,3475.6,3.2078]
[1735813605244,0.2301,3476.0,3475.3,1.165]
[1735813605450,0.28805,3475.7,3475.3,1.165]
[1735813605653,0.28803,3475.8,3475.3,1.165]
[1735813605954,1.5488,3475.7,3474.8,3.2078]
[1735813606156,0.28808,3475.3,3474.8,3.2078]
[1735813606452,0.28809,3475.2,3474.8,3.2078]
[1735813606754,1.5488,3475.7,3474.8,3.2078]
[1735813607056,0.28808,3475.3,3474.8,3.2078]
[1735813607453,0.28807,3475.5,3474.9,0.28811]
[1735813607748,0.28808,3475.2,3474.8,3.2078]
[1735813608053,0.28809,3475.1,3474.8,3.2078]
[1735813608355,0.28811,3474.9,3474.4,4.3728]
[1735813608551,0.2881,3475.0,3474.5,0.28814]
[1735813608854,0.4385,3475.3,3474.4,3.2078]
[1735813609155,0.2881,3475.0,3474.8,0.0008]
[1735813610144,0.4385,3475.3,3474.8,0.0008]
[1735813610349,0.4385,3475.3,3474.8,3.2086]
[1735813610747,0.28809,3475.2,3474.8,3.2086]
[1735813610942,0.72658,3475.3,3474.8,3.2086]
[1735813611155,0.28809,3475.2,3474.8,3.2086]
[1735813611457,0.72658,3475.3,3474.8,3.49672]
[1735813611651,0.28808,3475.2,3474.9,40.8]
[1735813611856,0.4385,3475.3,3474.9,0.28811]
[1735813612057,0.4385,3475.3,3475.1,0.28809]
[1735813612355,0.4385,3475.3,3475.1,40.8]
[1735813612754,0.4385,3475.3,3474.9,0.28811]
[1735813613152,0.4385,3475.3,3475.0,40.8]
[1735813613353,0.72658,3475.3,3475.0,40.8]
[1735813613552,0.4385,3475.3,3475.0,40.8]
[1735813613753,0.28809,3475.2,3475.0,40.8]
[1735813614055,0.4385,3475.3,3475.0,40.8]
[1735813614261,0.28811,3474.9,3474.8,3.2086]
[1735813614555,0.2881,3475.1,3474.8,3.2086]
[1735813614756,0.4385,3475.3,3474.8,3.2086]
[1735813614945,0.2881,3475.0,3474.8,3.2086]
[1735813615658,0.28811,3475.0,3474.8,3.2086]
[1735813615957,0.859,3475.3,3474.8,3.2086]
[1735813616253,0.28813,3474.6,3474.1,3.49597]
[1735813616454,5.64057713,3475.0,3474.1,3.49597]
[1735813616656,0.28812,3474.8,3474.3,0.28815]
[1735813616957,0.859,3475.3,3474.8,0.28811]
[1735813617154,0.859,3475.3,3474.6,3.2078]
[1735813617351,3.2078,3475.5,3474.6,3.2078]
[1735813617660,0.28807,3475.4,3474.8,0.28811]
[1735813617952,0.28808,3475.3,3474.9,0.2881]
[1735813618151,3.2078,3475.5,3474.6,3.2078]
[1735813618559,3.2078,3475.5,3473.5,0.2297828]
[1735813618560,0.28811,3474.9,3474.5,0.28814]
[1735813618753,3.2078,3475.0,3474.2,4.3788]
[1735813619755,0.28811,3474.9,3474.5,0.28814]
[1735813619955,0.2881,3475.0,3474.6,0.28813]
[1735813620260,0.2881,3475.0,3474.2,4.3788]
[1735813620261,0.4615,3475.2,3474.2,4.3788]
[1735813620554,3.438,3474.9,3474.3,0.28816]
[1735813620856,0.28813,3474.7,3474.3,0.28816]
[1735813621158,3.438,3474.9,3474.2,4.3788]
[1735813621358,0.28812,3474.8,3474.4,0.28815]
[1735813621552,3.72611,3474.9,3474.4,40.8]
[1735813621754,0.2302,3474.9,3474.4,40.8]
[1735813622057,1.7799,3474.9,3474.6,0.28813]
[1735813622257,1.7799,3474.9,3474.8,0.28812]
[1735813623253,2.0101,3474.9,3474.8,0.28812]
[1735813624460,3.49587,3475.4,3475.1,0.28809]
[1735813624766,3.49587,3475.4,3475.0,0.2881]
[1735813625358,3.2078,3475.4,3474.6,3.2078]
[1735813625563,0.2301,3475.3,3474.6,3.2078]
[1735813625766,0.74828,3475.3,3474.9,0.2881]
[1735813626064,0.4602,3475.3,3474.6,3.2078]
[1735813626261,0.74828,3475.3,3474.9,0.2881]
[1735813626460,0.74828,3475.3,3475.0,0.2881]
[1735813627558,0.74828,3475.3,3474.9,0.2881]
[1735813627758,0.4602,3475.3,3474.9,0.2881]
[1735813627964,0.74828,3475.3,3474.6,3.2078]
[1735813628164,0.74828,3475.3,3475.0,0.2881]
[1735813628362,0.4602,3475.3,3475.0,0.2881]
[1735813628666,0.74828,3475.3,3475.0,0.2881]
[1735813630062,0.74828,3475.3,3474.6,3.2078]
[1735813630364,0.4602,3475.3,3474.9,0.2881]
[1735813630565,0.74828,3475.3,3474.9,0.2881]
[1735813631059,0.28811,3474.9,3474.2,1.171]
[1735813631264,0.28811,3474.9,3474.6,0.28813]
[1735813631565,0.28811,3474.9,3474.1,7.89393334]
[1735813631766,3.4959,3475.0,3474.7,0.28813]
[1735813632265,3.2078,3475.0,3474.8,0.28811]
[1735813632761,3.2078,3475.0,3474.2,0.72042]
[1735813632965,3.2078,3475.0,3474.7,0.28812]
[1735813633161,3.2078,3475.0,3474.2,0.72042]
[1735813633364,3.2078,3475.0,3474.8,0.28811]
[1735813633561,3.2078,3475.0,3474.2,0.72042]
[1735813633862,2.2198,3475.0,3474.8,3.2078]
[1735813634060,0.4602,3475.3,3474.9,1.171]
[1735813634261,0.5106313,3476.2,3475.2,5.64057713]
[1735813634558,0.5106313,3476.2,3475.3,0.7202]
[1735813634764,0.1755,3476.1,3476.0,0.28802]
[1735813634960,0.1755,3476.1,3475.2,12.36351047]
[1735813635163,0.1755,3476.1,3476.0,0.28802]
[1735813635363,0.6406,3476.1,3476.0,0.28802]
[1735813636158,0.6406,3476.1,3475.2,9.93073334]
[1735813636359,0.6406,3476.1,3475.7,0.28804]
[1735813636360,1.35592,3476.1,3475.7,0.28804]
[1735813636560,3.2078,3475.8,3475.2,6.72293334]
[1735813636866,0.28808,3475.3,3475.2,6.72293334]
[1735813637166,0.28808,3475.3,3475.0,3.2078]
[1735813637357,0.51047685,3475.7,3475.0,3.2078]
[1735813637555,3.2078,3475.2,3474.8,6.72293334]
[1735813637761,0.28811,3474.9,3474.8,6.72293334]
[1735813638269,3.76737713,3475.1,3474.5,1.171]
[1735813638270,0.28812,3474.8,3474.5,1.171]
[1735813638565,0.28812,3474.8,3474.5,1.45914]
[1735813638866,0.28812,3474.8,3474.4,3.49595]
[1735813639066,0.28812,3474.8,3474.5,0.28814]
[1735813639564,0.28812,3474.8,3474.4,3.49595]
[1735813639758,0.51067369,3475.0,3474.4,3.2078]
[1735813639954,3.2078,3474.8,3474.0,3.2078]
[1735813640157,0.28815,3474.5,3474.1,0.28817]
[1735813640755,0.28815,3474.4,3474.1,0.28817]
[1735813640964,0.28816,3474.3,3473.9,6.72293334]
[1735813641169,0.28817,3474.2,3473.9,6.72293334]
[1735813641469,0.28817,3474.2,3473.8,0.28819]
[1735813641856,0.4474,3474.3,3473.8,0.28819]
[1735813642063,0.28821,3473.8,3473.5,6.72293334]
[1735813642369,0.2882,3473.8,3473.5,47.52293334]
[1735813642567,3.2078,3474.0,3473.5,47.52293334]
[1735813642865,0.2882,3473.8,3473.5,47.52293334]
[1735813643066,0.2882,3473.8,3473.4,0.28823]
[1735813643067,3.2078,3474.0,3473.4,0.28823]
[1735813643461,2.43277713,3473.9,3473.4,40.8]
[1735813643662,0.2882,3473.8,3473.4,41.08823]
[1735813643866,2.43277713,3473.9,3473.4,40.8]
[1735813644064,2.43277713,3473.9,3473.2,3.2078]
[1735813644263,0.28823,3473.5,3473.2,3.2078]
[1735813644460,0.28825,3473.2,3473.1,40.8]
[1735813644659,3.49605,3473.2,3473.1,40.8]
[1735813644866,3.2078,3473.2,3473.1,40.8]
[1735813645063,0.28826,3473.1,3472.7,0.28829]
[1735813645264,3.2078,3473.2,3472.5,11.11273334]
[1735813645563,3.2078,3473.2,3472.6,40.8]
[1735813645763,3.6701,3473.2,3472.9,0.28827]
[1735813646163,3.6701,3473.2,3472.5,3.2078]
[1735813646369,3.6701,3473.2,3472.9,0.28827]
[1735813646969,3.6701,3473.2,3472.5,3.2078]
[1735813647269,3.2078,3473.2,3473.1,0.28826]
[1735813647465,3.2078,3473.6,3473.5,0.28822]
[1735813648159,3.2078,3473.6,3473.5,41.08822]
[1735813648367,0.4432,3473.9,3473.8,0.2882]
[1735813648671,3.2078,3474.1,3473.5,41.983]
[1735813649470,3.49598,3474.1,3473.5,40.8]
[1735813649664,3.2078,3474.1,3473.5,40.8]
[1735813649866,3.2078,3473.7,3473.5,41.08822]
[1735813650068,0.1785,3474.0,3473.5,40.8]
[1735813650268,0.1785,3474.0,3473.6,0.28822]
[1735813650560,3.2078,3473.8,3473.7,0.2882]
[1735813650764,3.2078,3473.9,3473.5,40.8]
[1735813650975,3.2078,3473.9,3473.8,0.2882]
[1735813651175,0.1785,3474.0,3473.9,0.28819]
[1735813652267,0.1785,3474.0,3473.8,0.2882]
[1735813653466,0.1785,3474.0,3473.3,9.93073334]
[1735813653676,0.1785,3474.0,3473.6,0.28821]
[1735813653868,0.46669,3474.0,3473.6,0.28821]
[1735813654173,0.2882,3473.9,3473.5,0.28822]
[1735813654472,0.2874,3473.9,3473.5,0.28822]
[1735813654879,0.1785,3474.0,3473.3,3.2078]
[1735813655069,0.2882,3473.9,3473.5,0.28822]
[1735813655671,0.1785,3474.0,3473.7,0.2882]
[1735813655878,0.1785,3474.0,3473.3,3.2078]
[1735813656070,0.1785,3474.0,3473.9,0.28819]
[1735813656770,0.1785,3474.0,3473.8,0.2882]
[1735813656981,0.1785,3474.0,3473.3,3.2078]
[1735813657269,3.2078,3473.9,3473.3,6.72293334]
[1735813657575,0.1785,3474.0,3473.8,0.28819]
[1735813657774,0.1785,3474.0,3473.9,0.28819]
[1735813657976,0.1785,3474.0,3473.3,9.93073334]
[1735813658176,0.46668,3474.0,3473.3,9.93073334]
[1735813658376,0.46668,3474.0,3473.6,0.28821]
[1735813658672,0.2882,3473.9,3473.3,9.93073334]
[1735813658875,3.2078,3473.9,3473.4,0.28823]
[1735813659182,3.49599,3473.9,3473.6,0.28821]
[1735813659470,0.2882,3473.8,3473.5,0.28822]
[1735813659672,0.7476,3473.8,3473.5,0.28822]
[1735813660173,0.4594,3473.8,3473.0,6.72293334]
[1735813660473,0.4594,3473.8,3473.6,0.28821]
[1735813661377,0.4594,3473.8,3473.0,1.90367]
[1735813661576,1.35971931,3473.9,3473.5,0.28822]
[1735813661777,1.64791931,3473.9,3473.6,0.28821]
[1735813662081,1.35971931,3473.9,3473.8,0.2882]
[1735813662482,0.0173,3474.0,3473.8,0.2882]
[1735813663179,0.1787,3473.9,3473.8,0.2882]
[1735813663679,0.4089,3473.9,3473.8,0.2882]
[1735813667982,0.4089,3473.9,3473.8,3.496]
[1735813669388,0.4089,3473.9,3473.8,3.4968]
[1735813669787,0.4089,3473.9,3473.8,4.6798]
[1735813670881,0.4089,3473.9,3473.8,1.472]
[1735813671081,0.4089,3473.9,3473.8,4.6798]
[1735813671280,0.0173,3474.0,3473.9,0.28819]
[1735813672479,0.1321,3474.0,3473.9,0.28819]
[1735813677382,0.28819,3473.9,3473.8,0.0008]
[1735813677584,1.15759,3473.9,3473.8,0.0008]
[1735813678693,0.8694,3473.9,3473.4,3.2078]
[1735813678890,2.03972806,3473.8,3473.0,6.72293334]
[1735813679090,2.03972806,3473.8,3472.9,3.2078]
[1735813679287,0.28825,3473.3,3473.0,0.28826]
[1735813679494,0.28824,3473.4,3473.1,0.28825]
[1735813679996,0.28825,3473.3,3473.0,0.28826]
[1735813680188,0.4382,3473.2,3473.0,0.28826]
[1735813680588,0.4382,3473.2,3472.9,3.2078]
[1735813680789,0.4382,3473.2,3473.1,0.28826]
[1735813680989,0.72645,3473.2,3473.0,0.28826]
[1735813681288,0.4382,3473.2,3473.0,0.28826]
[1735813681490,0.4382,3473.2,3473.1,0.28826]
[1735813682000,0.70591,3473.7,3473.0,2.03972806]
[1735813682190,0.8559,3473.7,3473.3,0.28824]
[1735813682391,0.28822,3473.6,3473.3,0.28824]
[1735813682790,0.28823,3473.5,3473.3,0.28824]
[1735813683095,0.8559,3473.7,3473.1,0.28825]
[1735813683396,0.8559,3473.7,3472.9,3.2078]
[1735813683591,0.8559,3473.7,3473.1,0.28825]
[1735813683798,0.8559,3473.7,3472.9,3.2078]
[1735813684098,0.28825,3473.2,3473.0,7.01119334]
[1735813684396,1.36657765,3473.7,3473.0,6.72293334]
[1735813684598,0.0318,3473.2,3473.0,6.72293334]
[1735813684896,0.0318,3473.2,3473.1,12.93866343]
[1735813685497,0.0318,3473.2,3473.1,12.65040343]
[1735813685498,0.32005,3473.2,3473.1,12.65040343]
[1735813685700,3.52785,3473.2,3473.1,12.65040343]
[1735813686196,4.03852765,3473.2,3473.1,12.65040343]
[1735813686503,0.28826,3473.1,3473.0,6.72293334]
[1735813686692,0.28826,3473.1,3473.0,1.52793334]
[1735813686693,3.29306571,3473.1,3473.0,1.52793334]
[1735813687000,0.28828,3472.9,3472.8,8.96069576]
[1735813687395,5.28828,3472.9,3472.8,8.96069576]
[1735813687600,5.79895765,3472.9,3472.8,8.96069576]
[1735813688198,0.28833,3472.3,3472.1,0.28834]
[1735813688691,3.2078,3472.8,3472.1,0.28834]
[1735813688895,0.28833,3472.2,3472.1,0.28834]
[1735813689589,3.2078,3472.8,3472.1,0.28834]
[1735813689797,3.2078,3472.8,3472.0,3.643]
[1735813689798,0.4544,3473.1,3472.6,2.03972806]
[1735813689991,0.74266,3473.1,3473.0,0.28827]
[1735813690194,0.32006,3473.2,3473.0,0.28826]
[1735813690493,0.28826,3473.1,3473.0,0.28826]
[1735813690901,0.28826,3473.1,3472.9,3.49607]
[1735813691093,0.28827,3473.0,3472.9,3.49607]
[1735813691397,0.28826,3473.1,3473.0,0.28826]
[1735813691895,0.28826,3473.1,3472.9,3.49607]
[1735813692395,0.28826,3473.1,3473.0,0.28827]
[1735813692587,0.28827,3473.0,3472.9,3.2078]
[1735813692793,0.28827,3473.0,3472.8,0.28828]
[1735813692988,0.28828,3472.9,3472.8,0.28828]
[1735813693189,0.28827,3473.0,3472.9,0.28827]
[1735813693394,0.28826,3473.1,3472.9,0.28827]
[1735813694103,0.28826,3473.1,3473.0,0.28827]
[1735813694695,0.0318,3473.2,3472.6,2.03972806]
[1735813694897,0.0318,3473.2,3473.0,0.28826]
[1735813695097,0.28826,3473.1,3473.0,0.28826]
[1735813695605,0.28826,3473.1,3472.9,0.28827]
[1735813696106,0.28826,3473.1,3473.0,0.28827]
[1735813696404,0.32006,3473.2,3473.0,0.28827]
[1735813696910,0.28826,3473.1,3473.0,0.28827]
[1735813697210,0.32005,3473.2,3473.0,0.28827]
[1735813697402,0.32005,3473.2,3473.1,0.28826]
[1735813697708,0.28826,3473.1,3473.0,0.28826]
[1735813698705,0.40346,3473.1,3473.0,0.28826]
[1735813699506,0.40346,3473.1,3473.0,0.28906]
[1735813701009,0.40346,3473.1,3473.0,0.28907]
[1735813701798,0.44186,3473.1,3473.0,0.0008]
[1735813706214,0.44186,3473.1,3473.0,0.4369]
[1735813706815,0.44186,3473.1,3473.0,0.72517]
[1735813707313,0.1536,3473.1,3473.0,0.72517]
[1735813707714,0.1536,3473.1,3473.0,1.15127]
[1735813708607,0.28822,3473.6,3473.0,0.863]
[1735813708912,2.55064227,3474.0,3473.1,0.4237]
[1735813709309,0.51091421,3474.0,3473.3,3.2078]
[1735813709504,0.51091421,3474.0,3473.3,3.9284]
[1735813709709,0.2882,3473.9,3473.8,0.2882]
[1735813711611,2.04262806,3474.0,3473.3,3.2078]
[1735813711917,0.28825,3473.2,3473.1,0.4237]
[1735813712117,0.28825,3473.2,3473.1,0.71196]
[1735813712417,0.28825,3473.2,3473.1,0.4237]
[1735813712808,0.28825,3473.2,3473.1,0.71196]
[1735813713211,2.55047623,3473.6,3473.1,0.4237]
[1735813713407,0.28823,3473.5,3473.4,0.28823]
[1735813713611,2.5506118,3473.6,3473.1,0.4237]
[1735813713917,0.28824,3473.4,3473.3,0.28824]
[1735813714116,2.03972806,3473.9,3473.1,0.4237]
[1735813714308,0.28821,3473.7,3473.6,0.28821]
[1735813714616,0.28824,3473.4,3473.3,0.28824]
[1735813715011,2.03972806,3473.9,3473.1,0.4237]
[1735813715212,0.28823,3473.5,3473.4,0.28823]
[1735813715615,0.28824,3473.4,3473.1,0.4237]
[1735813715816,0.51083028,3473.7,3473.2,0.28825]
[1735813716019,0.28824,3473.3,3473.2,0.28825]
[1735813716320,0.28824,3473.3,3473.1,0.71195]
[1735813716709,0.51083028,3473.7,3473.1,0.4237]
[1735813716911,0.28826,3473.1,3473.0,0.863]
[1735813717415,2.55055834,3473.6,3473.0,0.863]
[1735813717608,2.55055834,3473.6,3473.0,1.15126]
[1735813717609,0.28825,3473.2,3473.0,1.15126]
[1735813718616,0.28826,3473.1,3473.0,0.863]
[1735813721128,0.28825,3473.2,3473.0,1.15126]
[1735813722632,2.55055834,3473.6,3473.1,0.28825]
[1735813722834,0.28826,3473.2,3473.0,1.15126]
[1735813723028,2.97805834,3473.6,3473.0,0.863]
[1735813723332,0.28826,3473.2,3473.0,0.863]
[1735813723536,0.28826,3473.2,3473.0,1.15126]
[1735813724033,0.28825,3473.3,3473.1,0.28825]
[1735813724836,2.97805834,3473.6,3473.0,0.863]
[1735813725133,0.28824,3473.4,3473.1,0.28826]
[1735813725533,0.28824,3473.3,3473.1,0.28826]
[1735813726034,2.97805834,3473.6,3473.0,0.863]
[1735813726335,0.51083028,3473.6,3473.0,0.863]
[1735813726540,0.28822,3473.6,3473.4,0.28823]
[1735813727241,0.28822,3473.6,3473.0,0.863]
[1735813727428,0.51083028,3473.7,3473.4,0.28823]
[1735813727429,0.28823,3473.5,3473.4,0.28823]
[1735813728639,0.51083028,3473.7,3473.0,5.3209925]
[1735813728833,0.28825,3473.3,3473.2,0.28825]
[1735813729035,0.28745,3473.3,3473.2,0.28825]
[1735813729336,0.28824,3473.4,3473.3,0.28824]
[1735813729726,2.03972806,3473.6,3473.0,5.3201925]
[1735813730034,0.28825,3473.3,3473.2,0.28825]
[1735813730939,0.28826,3473.2,3473.1,4.7462525]
[1735813731435,0.28825,3473.2,3473.1,4.7462525]
[1735813731637,0.28825,3473.3,3473.2,0.28825]
[1735813733239,0.51083028,3473.7,3473.1,4.4579925]
[1735813733432,0.28824,3473.3,3473.2,0.28825]
[1735813733834,0.51083028,3473.7,3473.2,4.4579925]
[1735813734040,0.28824,3473.4,3473.3,0.28824]
[1735813734244,0.28823,3473.5,3473.4,0.28823]
[1735813735427,0.28822,3473.6,3473.5,0.28822]
[1735813735730,0.28824,3473.4,3473.3,4.4579925]
[1735813736339,0.28826,3473.1,3473.0,1.15047]
[1735813737133,0.28826,3473.1,3473.0,0.8622]
[1735813737334,0.28826,3473.2,3473.1,0.28826]
[1735813737833,0.28826,3473.1,3473.0,1.15047]
[1735813738630,0.28826,3473.1,3473.0,0.8622]
[1735813739029,2.03972806,3473.3,3472.9,7.6657925]
[1735813739239,0.28827,3473.0,3472.9,7.6657925]
[1735813740237,0.0133,3473.0,3472.9,7.9540725]
[1735813742347,0.0133,3473.0,3472.9,9.26480229]
[1735813742643,0.0133,3473.0,3472.9,6.05700229]
[1735813742832,0.0133,3473.0,3472.9,9.26480229]
[1735813744440,0.0133,3473.0,3472.9,9.26560229]
[1735813744644,0.0133,3473.0,3472.9,29.76315614]
[1735813745146,0.51083028,3473.7,3473.6,0.28822]
[1735813745338,4.5289822,3473.9,3473.8,0.2882]
[1735813745541,5.63907364,3474.0,3473.9,0.28819]
[1735813747244,0.28818,3474.1,3473.9,14.72941805]
[1735813748343,0.28819,3474.0,3473.9,15.16711805]
[1735813748645,0.28819,3474.0,3473.9,0.4377]
[1735813749441,0.28819,3473.9,3473.8,6.68357937]
[1735813749749,0.28819,3473.9,3473.8,4.45611834]
[1735813750648,3.49599,3473.9,3473.8,4.45611834]
[1735813751041,5.24752806,3473.9,3473.7,4.45611834]
[1735813751241,0.2882,3473.8,3473.7,4.45611834]
[1735813752140,5.63907364,3473.8,3473.3,0.71214]
[1735813752343,0.28823,3473.5,3473.3,0.71214]
[1735813752646,5.63907364,3473.8,3473.3,0.4239]
[1735813752850,0.28823,3473.5,3473.3,0.71214]
[1735813753247,4.81993064,3473.5,3473.3,0.71214]
[1735813753942,4.53170064,3473.5,3473.3,0.4239]
[1735813754148,0.28824,3473.4,3473.3,0.4239]
[1735813754349,4.53170064,3473.6,3473.5,0.28823]
[1735813755048,4.81992064,3473.7,3473.5,0.28823]
[1735813755241,0.51976274,3473.6,3473.5,0.28823]
[1735813756639,0.80798274,3473.6,3473.5,0.28823]
[1735813756845,0.80798274,3473.6,3473.3,0.4239]
[1735813757047,0.80798274,3473.6,3473.4,0.28823]
[1735813757748,5.33968338,3473.6,3473.4,0.28823]
[1735813758045,0.51976274,3473.5,3473.4,0.28823]
[1735813758350,4.81992064,3473.6,3473.4,0.28823]
[1735813758546,3.2078,3473.9,3473.3,0.4239]
[1735813758740,0.28823,3473.5,3473.3,0.71214]
[1735813758948,0.51975509,3473.8,3473.3,0.4239]
[1735813759249,0.28822,3473.6,3473.4,0.28824]
[1735813761248,0.28824,3473.5,3473.3,0.71214]
[1735813761437,0.28824,3473.5,3473.3,0.4239]
[1735813761640,0.28824,3473.5,3473.3,0.71214]
[1735813762050,0.28822,3473.6,3473.4,0.28823]
[1735813762552,0.28821,3473.7,3473.5,0.28823]
[1735813762948,0.28822,3473.6,3473.5,0.28823]
[1735813763248,0.28822,3473.7,3473.5,0.28823]
[1735813764045,4.53170064,3474.2,3474.0,0.28818]
[1735813764252,4.81987064,3474.2,3474.1,0.8818]
[1735813764746,5.33950301,3474.2,3474.1,0.8818]
[1735813764952,4.53170064,3474.2,3474.1,1.16998]
[1735813765350,0.28817,3474.2,3474.1,1.16998]
[1735813765847,2.03972806,3474.5,3473.7,7.66391834]
[1735813766056,0.2882,3473.8,3473.7,4.45611834]
[1735813766244,0.80769403,3473.8,3473.7,4.45611834]
[1735813766449,2.12249403,3473.8,3473.7,4.45611834]
[1735813766650,2.12249403,3473.8,3473.4,8.96069576]
[1735813766651,0.28823,3473.5,3473.4,4.45611834]
[1735813766849,2.32795806,3473.5,3473.4,4.45611834]
[1735813767044,5.53575806,3473.5,3473.4,4.45611834]
[1735813767245,6.05525209,3473.5,3473.4,4.45611834]